[Event "Championnat du monde jeunes U10"]
[Date "2024.11.19"]
[White "Prokhorov, Makar"]
[Black "Vukashinovikj, Jovan"]
[WhiteElo "1771"]
[BlackElo "1454"]
[Round "5.15"]
[Result "1-0"]
[TimeControl "5400+30"]

1. e4 {[%clk 1:30:59]} 1... e5 {[%clk 1:30:55]} 2. Nf3 {[%clk 1:31:21]} 2... Nf6
{[%clk 1:31:21]} 3. Nxe5 {[%clk 1:31:40]} 3... d6 {[%clk 1:31:29]} 4. Nf3 {[%clk
1:31:43]} 4... Nxe4 {[%clk 1:31:53]} 5. Nc3 {[%clk 1:31:50]} 5... Nxc3 {[%clk
1:31:26]} 6. dxc3 {[%clk 1:32:10]} 6... Be7 {[%clk 1:31:20]} 7. Bf4 {[%clk
1:31:24]} 7... Nd7 {[%clk 1:28:32]} 8. Qd2 {[%clk 1:31:26]} 8... Nf6 {[%clk
1:28:23]} 9. O-O-O {[%clk 1:31:34]} 9... Be6 {[%clk 1:28:03]} 10. Kb1 {[%clk
1:31:00]} 10... Nd5 {[%clk 1:21:22]} 11. Bg3 {[%clk 1:30:40]} 11... Nb6 {[%clk
1:13:30]} 12. Nd4 {[%clk 1:30:30]} 12... Bd5 13. Nf5 {[%clk 1:23:16]} 13... g6
{[%clk 1:04:44]} 14. Nxe7 {[%clk 1:19:39]} 14... Qxe7 {[%clk 1:03:17]} 15. Re1
{[%clk 1:19:22]} 15... Be6 {[%clk 1:03:38]} 16. Bb5+ {[%clk 1:19:16]} 16... Nd7
{[%clk 1:02:59]} 17. Qd4 {[%clk 1:18:40]} 17... Rf8 {[%clk 1:00:24]} 18. Re3
{[%clk 1:17:48]} 18... O-O-O {[%clk 0:48:25]} 19. Rd1 {[%clk 1:09:03]} 19... Kb8
{[%clk 0:46:36]} 20. Qb4 {[%clk 1:08:02]} 20... Nc5 {[%clk 0:43:52]} 21. Bc6
{[%clk 0:59:06]} 21... a5 {[%clk 0:44:01]} 22. Qb5 {[%clk 0:58:13]} 22... Kc8
{[%clk 0:38:43]} 23. Bf3 {[%clk 0:57:34]} 23... c6 {[%clk 0:37:27]} 24. Qxa5
{[%clk 0:53:29]} 24... f5 {[%clk 0:36:57]} 25. Qa8+ {[%clk 0:52:21]} 25... Kc7
{[%clk 0:36:10]} 26. Qa5+ {[%clk 0:47:33]} 26... Kb8 {[%clk 0:34:13]} 27. Qxc5
{[%clk 0:41:55]} 27... f4 {[%clk 0:33:37]} 28. Qd4 {[%clk 0:39:39]} 28... c5
{[%clk 0:33:23]} 29. Qe4 {[%clk 0:34:52]} 29... fxe3 {[%clk 0:27:10]} 30. Rxd6
{[%clk 0:28:48]} 30... Bxa2+ {[%clk 0:26:10]} 31. Kxa2 {[%clk 0:27:39]} 31...
Qxe4 {[%clk 0:26:07]} 32. Rxd8+ {[%clk 0:21:26]} 32... Ka7 {[%clk 0:26:24]} 33.
Bxe4 {[%clk 0:21:13]} 33... Rxd8 {[%clk 0:26:42]} 34. fxe3 {[%clk 0:20:39]}
34... Re8 {[%clk 0:27:04]} 35. Bf3 {[%clk 0:20:26]} 35... Rxe3 {[%clk 0:27:26]}
36. Bf2 {[%clk 0:20:47]} 36... Re5 {[%clk 0:27:51]} 37. Kb3 {[%clk 0:20:18]}
37... Rf5 {[%clk 0:28:00]} 38. Kc4 {[%clk 0:19:26]} 38... b6 {[%clk 0:28:22]}
39. b4 {[%clk 0:19:25]} 39... cxb4 {[%clk 0:28:40]} 40. cxb4 {[%clk 0:19:24]}
40... g5 {[%clk 0:29:05]} 41. Be3 {[%clk 0:17:48]} 41... Re5 {[%clk 0:29:09]}
42. Kd4 {[%clk 0:17:46]} 42... Re8 {[%clk 0:28:51]} 43. Bxg5 {[%clk 0:17:08]}
43... Rg8 {[%clk 0:29:15]} 44. Be3 {[%clk 0:16:01]} 44... Ka6 {[%clk 0:29:18]}
45. c4 {[%clk 0:15:37]} 45... h5 {[%clk 0:29:37]} 46. g3 {[%clk 0:14:54]} 46...
Rd8+ {[%clk 0:28:53]} 47. Kc3 {[%clk 0:14:30]} 47... Re8 {[%clk 0:29:08]} 48.
b5+ {[%clk 0:14:26]} 48... Ka5 {[%clk 0:28:59]} 49. Bd4 {[%clk 0:14:15]} 49...
Re1 {[%clk 0:28:32]} 50. Kb3 {[%clk 0:13:25]} 50... Rb1+ {[%clk 0:28:50]} 51.
Bb2 {[%clk 0:13:46]} 51... Rxb2+ {[%clk 0:28:52]} 52. Kxb2 {[%clk 0:14:06]} 1-0

[Variant "Standard"]
[Site "Europe Echecs"]

[Event "Championnat du monde jeunes U10"]
[Date "2024.11.19"]
[White "Dien James"]
[Black "Ostapenko, Volodymyr"]
[WhiteElo "1513"]
[BlackElo "1720"]
[Round "5.17"]
[Result "1/2-1/2"]
[TimeControl "5400+30"]

1. e4 {[%clk 1:30:56]} 1... e5 {[%clk 1:30:57]} 2. Nf3 {[%clk 1:31:14]} 2... Nc6
{[%clk 1:31:20]} 3. d4 {[%clk 1:31:15]} 3... exd4 {[%clk 1:31:24]} 4. Nxd4
{[%clk 1:31:31]} 4... Bc5 {[%clk 1:31:41]} 5. Be3 {[%clk 1:31:26]} 5... Qf6
{[%clk 1:31:15]} 6. c3 {[%clk 1:29:45]} 6... Nge7 {[%clk 1:31:14]} 7. Bd3 {[%clk
1:26:46]} 7... O-O {[%clk 1:30:32]} 8. O-O {[%clk 1:26:35]} 8... d5 {[%clk
1:25:07]} 9. Nb5 {[%clk 1:15:32]} 9... dxe4 {[%clk 1:16:43]} 10. Bxc5 {[%clk
1:08:46]} 10... Rd8 {[%clk 1:10:29]} 11. Bd4 {[%clk 0:52:34]} 11... Nxd4 {[%clk
1:06:59]} 12. Bxe4 {[%clk 0:51:22]} 12... Ne6 {[%clk 1:02:29]} 13. Qf3 {[%clk
0:42:30]} 1/2-1/2

[Variant "Standard"]
[Site "Europe Echecs"]

[Event "Championnat du monde jeunes U10"]
[Date "2024.11.19"]
[White "Park, Jaeik"]
[Black "Kalinichenko, German Yu"]
[WhiteElo "1477"]
[BlackElo "1621"]
[Round "5.19"]
[Result "0-1"]
[TimeControl "5400+30"]

1. e4 {[%clk 1:30:57]} 1... e5 {[%clk 1:30:49]} 2. Nf3 {[%clk 1:31:18]} 2... Nc6
{[%clk 1:31:15]} 3. Bb5 {[%clk 1:31:31]} 3... a6 {[%clk 1:31:39]} 4. Ba4 {[%clk
1:31:54]} 4... Nf6 {[%clk 1:32:02]} 5. Qe2 {[%clk 1:32:04]} 5... b5 {[%clk
1:32:24]} 6. Bb3 {[%clk 1:32:27]} 6... Be7 {[%clk 1:32:44]} 7. d4 {[%clk
1:32:09]} 7... d6 {[%clk 1:29:30]} 8. dxe5 {[%clk 1:31:58]} 8... Nxe5 {[%clk
1:28:55]} 9. Nxe5 {[%clk 1:31:51]} 9... dxe5 {[%clk 1:29:13]} 10. O-O {[%clk
1:31:42]} 10... O-O {[%clk 1:29:32]} 11. Rd1 {[%clk 1:30:51]} 11... Bd7 {[%clk
1:29:16]} 12. c3 {[%clk 1:30:07]} 12... c5 {[%clk 1:28:32]} 13. Nd2 {[%clk
1:27:25]} 13... Qc7 {[%clk 1:26:54]} 14. Nf1 {[%clk 1:25:12]} 14... c4 {[%clk
1:26:21]} 15. Bc2 {[%clk 1:25:20]} 15... Bc5 {[%clk 1:25:44]} 16. h3 {[%clk
1:23:36]} 16... a5 {[%clk 1:25:09]} 17. Bd2 {[%clk 1:18:04]} 17... h6 {[%clk
1:24:28]} 18. Ng3 {[%clk 1:17:06]} 18... Ra6 {[%clk 1:23:25]} 19. Nf5 {[%clk
1:12:36]} 19... Bxf5 {[%clk 1:22:21]} 20. exf5 {[%clk 1:11:46]} 20... e4 {[%clk
1:19:51]} 21. Re1 {[%clk 1:05:18]} 21... Re8 {[%clk 1:19:42]} 22. Kh1 {[%clk
1:00:36]} 22... Qe5 {[%clk 1:18:43]} 23. b3 {[%clk 0:53:21]} 23... Bd6 {[%clk
1:15:01]} 24. g3 {[%clk 0:44:30]} 24... Qxf5 {[%clk 1:14:40]} 25. Kg2 {[%clk
0:43:17]} 25... cxb3 {[%clk 1:11:18]} 26. Bxb3 {[%clk 0:40:19]} 26... Nh7 {[%clk
1:10:08]} 27. c4 {[%clk 0:33:09]} 27... Bb4 {[%clk 1:09:02]} 28. cxb5 {[%clk
0:29:35]} 28... Bxd2 {[%clk 1:08:38]} 29. bxa6 {[%clk 0:26:48]} 29... Bxe1
{[%clk 1:08:17]} 30. Qxe1 {[%clk 0:23:02]} 30... Ng5 {[%clk 1:08:18]} 31. g4
{[%clk 0:21:51]} 31... Qf3+ {[%clk 1:08:37]} 32. Kf1 {[%clk 0:21:37]} 32...
Qxh3+ {[%clk 1:08:47]} 0-1

[Variant "Standard"]
[Site "Europe Echecs"]

[Event "Championnat du monde jeunes U10"]
[Date "2024.11.19"]
[White "Radiukevich, Viacheslau"]
[Black "Osmolovskii, Nikita"]
[WhiteElo "1484"]
[BlackElo "1468"]
[Round "5.29"]
[Result "1/2-1/2"]
[TimeControl "5400+30"]

1. e4 {[%clk 1:30:56]} 1... e5 {[%clk 1:30:56]} 2. Nf3 {[%clk 1:30:55]} 2... d6
{[%clk 1:31:22]} 3. d4 {[%clk 1:31:16]} 3... exd4 {[%clk 1:31:48]} 4. Nxd4
{[%clk 1:31:36]} 4... Nf6 {[%clk 1:32:13]} 5. Nc3 {[%clk 1:31:59]} 5... Be7
{[%clk 1:32:35]} 6. f3 {[%clk 1:32:24]} 6... O-O {[%clk 1:32:53]} 7. Be3 {[%clk
1:32:44]} 7... Nbd7 {[%clk 1:33:08]} 8. Qd2 {[%clk 1:33:04]} 8... a6 {[%clk
1:33:28]} 9. O-O-O {[%clk 1:33:12]} 9... b5 {[%clk 1:33:40]} 10. g4 {[%clk
1:33:24]} 10... c5 {[%clk 1:33:46]} 11. Nc6 {[%clk 1:33:34]} 11... Qe8 {[%clk
1:33:37]} 12. Nxe7+ {[%clk 1:33:12]} 12... Qxe7 {[%clk 1:33:36]} 13. Nd5 {[%clk
1:31:50]} 13... Nxd5 {[%clk 1:32:50]} 14. Qxd5 {[%clk 1:32:11]} 14... Rb8 {[%clk
1:24:34]} 15. Qxd6 {[%clk 1:32:20]} 15... Qxd6 {[%clk 1:24:29]} 16. Rxd6 {[%clk
1:32:41]} 16... Ne5 {[%clk 1:21:25]} 17. Bf4 {[%clk 1:28:53]} 17... f6 {[%clk
1:17:03]} 18. Rd5 {[%clk 1:28:04]} 18... c4 {[%clk 1:08:02]} 19. g5 {[%clk
1:23:40]} 19... Bb7 {[%clk 1:02:33]} 20. gxf6 {[%clk 1:21:02]} 20... Bxd5 {[%clk
0:55:41]} 21. Bxe5 {[%clk 1:21:21]} 21... Rbe8 {[%clk 0:55:53]} 22. fxg7 {[%clk
1:20:38]} 22... Rf7 {[%clk 0:50:15]} 23. exd5 {[%clk 1:19:29]} 23... Rxe5 {[%clk
0:46:48]} 24. Bh3 {[%clk 1:19:06]} 24... Kxg7 {[%clk 0:43:16]} 25. d6 {[%clk
1:17:10]} 25... Rxf3 {[%clk 0:41:59]} 26. d7 {[%clk 1:16:55]} 26... Rf8 {[%clk
0:41:36]} 27. Rg1+ {[%clk 1:16:33]} 27... Kh8 {[%clk 0:39:50]} 28. Rd1 {[%clk
1:15:55]} 28... Rd8 {[%clk 0:38:32]} 29. Rd6 {[%clk 1:13:51]} 29... a5 {[%clk
0:37:10]} 30. Rc6 {[%clk 1:11:32]} 30... Rg5 {[%clk 0:33:14]} 31. Rc8 {[%clk
1:11:24]} 31... Rgg8 {[%clk 0:33:37]} 32. Be6 {[%clk 1:10:25]} 32... Rgf8 {[%clk
0:28:51]} 33. Rc5 {[%clk 1:09:58]} 33... Rb8 {[%clk 0:26:46]} 34. Rc8 {[%clk
1:10:18]} 34... Rd8 {[%clk 0:27:08]} 1/2-1/2

[Variant "Standard"]
[Site "Europe Echecs"]

[Event "Championnat du monde jeunes U10"]
[Date "2024.11.20"]
[White "Shogdzhiev, Roman"]
[Black "Sameh Mohamed, Abdalrahman"]
[WhiteElo "2202"]
[BlackElo "2238"]
[Round "6.1"]
[Result "1-0"]
[TimeControl "5400+30"]

1. e4 {[%clk 1:31:00]} 1... g6 {[%clk 1:30:55]} 2. d4 {[%clk 1:31:26]} 2... Bg7
{[%clk 1:31:21]} 3. Nf3 {[%clk 1:31:38]} 3... d6 {[%clk 1:31:43]} 4. Bd3 {[%clk
1:32:03]} 4... Nf6 {[%clk 1:32:06]} 5. O-O {[%clk 1:32:25]} 5... O-O {[%clk
1:32:31]} 6. c3 {[%clk 1:32:50]} 6... Nc6 {[%clk 1:32:30]} 7. h3 {[%clk
1:26:55]} 7... e5 8. Re1 {[%clk 1:26:56]} 8... Nd7 {[%clk 1:28:22]} 9. Bg5
{[%clk 1:25:28]} 9... Qe8 {[%clk 1:28:29]} 10. Na3 {[%clk 1:23:44]} 10... a6
{[%clk 1:25:29]} 11. Nc2 {[%clk 1:23:47]} 11... h6 {[%clk 1:25:50]} 12. Be3
{[%clk 1:23:28]} 12... f5 {[%clk 1:20:59]} 13. exf5 {[%clk 1:20:39]} 13... gxf5
{[%clk 1:21:24]} 14. dxe5 {[%clk 1:17:59]} 14... dxe5 {[%clk 1:21:46]} 15. Bc4+
{[%clk 1:05:45]} 15... Kh8 {[%clk 1:21:49]} 16. Qe2 {[%clk 1:04:14]} 16... Qg6
{[%clk 1:17:26]} 17. Nh4 {[%clk 1:04:07]} 17... Qe8 {[%clk 1:14:29]} 18. f4
{[%clk 1:01:46]} 18... Na5 {[%clk 0:47:58]} 19. fxe5 {[%clk 0:51:56]} 19... Nxe5
{[%clk 0:46:45]} 20. Bb3 {[%clk 0:50:45]} 20... Nxb3 {[%clk 0:37:57]} 21. axb3
{[%clk 0:51:08]} 21... Qc6 {[%clk 0:31:19]} 22. Bd4 {[%clk 0:49:51]} 22... Ng6
{[%clk 0:28:11]} 23. Bxg7+ Kxg7 {[%clk 0:28:39]} 24. Nd4 {[%clk 0:34:33]} 24...
Qf6 {[%clk 0:28:44]} 25. Nxg6 {[%clk 0:34:58]} 25... Kxg6 {[%clk 0:29:03]} 26.
Qc4 {[%clk 0:33:47]} 26... c6 {[%clk 0:28:43]} 27. Ne6 {[%clk 0:33:30]} 27...
Rf7 {[%clk 0:28:45]} 28. Nf4+ {[%clk 0:33:14]} 28... Kh7 {[%clk 0:29:06]} 29.
Re8 {[%clk 0:33:38]} 29... b5 {[%clk 0:27:27]} 30. Qc5 {[%clk 0:32:16]} 30...
Qg5 {[%clk 0:27:16]} 31. Qd4 {[%clk 0:26:03]} 31... Rg7 {[%clk 0:27:11]} 32. h4
{[%clk 0:26:16]} 32... Qg4 {[%clk 0:24:31]} 33. Qd8 {[%clk 0:26:26]} 33... Rg8
{[%clk 0:24:57]} 34. Rae1 {[%clk 0:24:44]} 34... Be6 {[%clk 0:24:39]} 35. Re7+
{[%clk 0:24:32]} 35... Rg7 {[%clk 0:24:22]} 36. Rxg7+ {[%clk 0:24:55]} 36...
Qxg7 {[%clk 0:24:33]} 37. Qxa8 {[%clk 0:25:17]} 37... Bxb3 {[%clk 0:23:22]} 38.
Qxc6 {[%clk 0:24:39]} 38... Qa7+ {[%clk 0:23:41]} 39. Kh2 {[%clk 0:24:59]} 1-0

[Variant "Standard"]
[Site "Europe Echecs"]

[Event "Championnat du monde jeunes U10"]
[Date "2024.11.20"]
[White "Advik Amit Agrawal"]
[Black "Llari, Marc"]
[WhiteElo "1982"]
[BlackElo "2201"]
[Round "6.2"]
[Result "1/2-1/2"]
[TimeControl "5400+30"]

1. e4 {[%clk 1:30:18]} 1... e6 {[%clk 1:30:55]} 2. d4 {[%clk 1:30:17]} 2... d5
{[%clk 1:31:20]} 3. e5 {[%clk 1:30:40]} 3... c5 {[%clk 1:31:48]} 4. c3 {[%clk
1:31:04]} 4... Nc6 {[%clk 1:32:15]} 5. Nf3 {[%clk 1:31:23]} 5... Bd7 {[%clk
1:32:41]} 6. Be2 {[%clk 1:31:32]} 6... Nge7 {[%clk 1:33:04]} 7. a3 {[%clk
1:27:27]} 7... Rc8 {[%clk 1:28:34]} 8. O-O {[%clk 1:24:07]} 8... Ng6 {[%clk
1:27:22]} 9. g3 {[%clk 1:23:10]} 9... f6 {[%clk 1:20:29]} 10. exf6 {[%clk
1:17:40]} 10... Qxf6 {[%clk 1:17:00]} 11. h4 {[%clk 1:09:52]} 11... cxd4 12.
cxd4 {[%clk 1:08:44]} 12... Bd6 {[%clk 1:13:35]} 13. Nc3 {[%clk 1:02:35]} 13...
O-O {[%clk 1:10:56]} 14. Be3 {[%clk 0:58:43]} 14... h6 {[%clk 1:08:10]} 15. h5
{[%clk 0:46:56]} 15... Nge7 {[%clk 1:07:06]} 16. Nh4 {[%clk 0:45:12]} 16... e5
{[%clk 0:54:40]} 17. dxe5 {[%clk 0:43:56]} 17... Qxe5 {[%clk 0:53:04]} 18. Nb5
{[%clk 0:42:46]} 18... Bb8 {[%clk 0:51:26]} 19. Nd4 {[%clk 0:42:45]} 19... Qf6
{[%clk 0:47:35]} 20. f4 {[%clk 0:39:54]} 20... Rfe8 {[%clk 0:46:50]} 21. Bf2
{[%clk 0:28:30]} 21... Nxd4 {[%clk 0:42:17]} 22. Bxd4 {[%clk 0:28:41]} 22... Qf7
{[%clk 0:42:03]} 23. Bf3 {[%clk 0:20:23]} 23... Bb5 {[%clk 0:36:46]} 24. Rf2
{[%clk 0:18:59]} 24... Rcd8 {[%clk 0:35:37]} 25. a4 {[%clk 0:18:19]} 25... Ba6
{[%clk 0:35:12]} 26. Qd2 {[%clk 0:17:12]} 26... Nc6 {[%clk 0:32:55]} 27. b4
{[%clk 0:15:29]} 27... Nxd4 {[%clk 0:32:19]} 28. Qxd4 {[%clk 0:15:53]} 28... Bc4
{[%clk 0:32:37]} 29. Ng6 {[%clk 0:15:19]} 29... Qf6 {[%clk 0:31:32]} 30. Rd2
{[%clk 0:14:43]} 30... Qxd4+ {[%clk 0:31:42]} 31. Rxd4 {[%clk 0:15:05]} 31... a5
{[%clk 0:32:00]} 32. Kg2 {[%clk 0:14:28]} 32... Ba7 {[%clk 0:31:22]} 33. Rdd1
{[%clk 0:14:43]} 33... axb4 {[%clk 0:30:37]} 34. Ne5 {[%clk 0:15:03]} 34... b3
{[%clk 0:26:32]} 35. Rab1 {[%clk 0:15:02]} 35... Bc5 {[%clk 0:24:34]} 36. Nxc4
{[%clk 0:13:17]} 36... dxc4 {[%clk 0:25:02]} 37. Rdc1 {[%clk 0:13:36]} 37...
Rd2+ {[%clk 0:23:08]} 38. Kh3 {[%clk 0:13:49]} 38... Re3 {[%clk 0:22:30]} 39.
Bxb7 {[%clk 0:07:49]} 39... Rdd3 {[%clk 0:20:52]} 40. Kg4 {[%clk 0:08:03]} 40...
Rxg3+ {[%clk 0:19:22]} 41. Kf5 {[%clk 0:08:27]} 41... Rd7 {[%clk 0:16:46]} 42.
Rxc4 {[%clk 0:07:24]} 42... Rxb7 {[%clk 0:16:58]} 43. Rxc5 {[%clk 0:07:46]}
43... b2 {[%clk 0:17:07]} 44. Rc2 {[%clk 0:07:48]} 44... Ra3 {[%clk 0:16:38]}
45. Rbxb2 {[%clk 0:07:39]} 1/2-1/2

[Variant "Standard"]
[Site "Europe Echecs"]

[Event "Championnat du monde jeunes U10"]
[Date "2024.11.20"]
[White "Kolodziejczyk, Boris"]
[Black "Bolashakov, Nurali"]
[WhiteElo "2115"]
[BlackElo "2005"]
[Round "6.3"]
[Result "1-0"]
[TimeControl "5400+30"]

1. e4 {[%clk 1:30:53]} 1... c5 {[%clk 1:30:51]} 2. Nf3 {[%clk 1:31:04]} 2... e6
{[%clk 1:30:59]} 3. b3 {[%clk 1:30:44]} 3... a6 {[%clk 1:30:53]} 4. Bb2 {[%clk
1:29:44]} 4... Nc6 {[%clk 1:30:59]} 5. c4 {[%clk 1:27:18]} 5... d6 {[%clk
1:24:42]} 6. d4 {[%clk 1:25:22]} 6... cxd4 {[%clk 1:24:23]} 7. Nxd4 {[%clk
1:24:32]} 7... Nxd4 {[%clk 1:21:49]} 8. Qxd4 {[%clk 1:23:04]} 8... Nf6 {[%clk
1:21:00]} 9. Nc3 {[%clk 1:20:33]} 9... Be7 {[%clk 1:18:59]} 10. g3 {[%clk
1:18:18]} 10... O-O {[%clk 1:13:31]} 11. Bg2 {[%clk 1:18:05]} 11... Rb8 {[%clk
1:12:09]} 12. O-O {[%clk 1:13:44]} 12... b5 {[%clk 1:08:31]} 13. Rfd1 {[%clk
1:07:11]} 13... b4 {[%clk 1:02:38]} 14. Ne2 {[%clk 1:04:25]} 14... e5 {[%clk
1:01:18]} 15. Qa7 {[%clk 0:53:14]} 15... Bg4 {[%clk 0:49:22]} 16. f3 {[%clk
0:49:32]} 16... Bd7 {[%clk 0:49:31]} 17. Qf2 {[%clk 0:45:16]} 17... Qc7 {[%clk
0:48:14]} 18. Kh1 {[%clk 0:36:16]} 18... Rfc8 {[%clk 0:41:37]} 19. Nc1 {[%clk
0:31:34]} 19... a5 {[%clk 0:30:42]} 20. Nd3 {[%clk 0:30:16]} 20... a4 {[%clk
0:25:41]} 21. c5 {[%clk 0:28:08]} 21... a3 {[%clk 0:24:50]} 22. cxd6 {[%clk
0:27:58]} 22... Bxd6 {[%clk 0:25:10]} 23. Rac1 {[%clk 0:28:08]} 23... Qa5 {[%clk
0:24:50]} 24. Ba1 {[%clk 0:28:23]} 24... Qb5 {[%clk 0:19:01]} 25. Bf1 {[%clk
0:26:22]} 25... Qa5 {[%clk 0:18:21]} 26. Qe3 {[%clk 0:24:38]} 26... Bc6 {[%clk
0:15:04]} 27. Bg2 {[%clk 0:21:10]} 27... Nd7 {[%clk 0:10:37]} 28. Bh3 {[%clk
0:20:45]} 28... Bb5 {[%clk 0:09:15]} 29. Rxc8+ {[%clk 0:19:55]} 29... Rxc8
{[%clk 0:09:43]} 30. Nxe5 {[%clk 0:18:59]} 30... Nxe5 {[%clk 0:07:41]} 31. Bxe5
{[%clk 0:17:35]} 31... Bxe5 {[%clk 0:08:01]} 32. Bxc8 {[%clk 0:17:54]} 32... Qc7
{[%clk 0:07:18]} 33. Qd2 {[%clk 0:16:05]} 33... Bf6 {[%clk 0:06:40]} 34. Bd7
{[%clk 0:15:54]} 34... Ba6 {[%clk 0:05:07]} 35. Qd6 {[%clk 0:14:49]} 35... Qc3
{[%clk 0:04:44]} 36. Qb8+ {[%clk 0:15:09]} 1-0

[Variant "Standard"]
[Site "Europe Echecs"]

[Event "Championnat du monde jeunes U10"]
[Date "2024.11.20"]
[White "Jani, Aakash"]
[Black "Zhang, Junyi"]
[WhiteElo "1810"]
[BlackElo "2061"]
[Round "6.4"]
[Result "1/2-1/2"]
[TimeControl "5400+30"]

1. e4 {[%clk 1:30:54]} 1... c5 {[%clk 1:30:59]} 2. Nf3 {[%clk 1:31:01]} 2... e6
{[%clk 1:31:28]} 3. d4 {[%clk 1:30:45]} 3... cxd4 {[%clk 1:31:58]} 4. Nxd4
{[%clk 1:30:55]} 4... Nf6 {[%clk 1:32:24]} 5. Nc3 {[%clk 1:30:23]} 5... Nc6
{[%clk 1:32:52]} 6. Nxc6 {[%clk 1:28:46]} 6... bxc6 {[%clk 1:33:21]} 7. e5
{[%clk 1:28:29]} 7... Nd5 {[%clk 1:33:50]} 8. Ne4 {[%clk 1:27:50]} 8... Qc7
{[%clk 1:34:19]} 9. f4 Qb6 10. a3 {[%clk 1:26:36]} 10... Ne3 {[%clk 1:34:12]}
11. Qd3 {[%clk 1:25:49]} 11... Nxf1 {[%clk 1:34:41]} 12. Rxf1 {[%clk 1:25:07]}
12... Ba6 {[%clk 1:35:10]} 13. c4 {[%clk 1:25:23]} 13... f5 {[%clk 1:33:17]} 14.
exf6 {[%clk 1:21:33]} 14... d5 {[%clk 1:33:03]} 15. f7+ {[%clk 1:16:15]} 15...
Kxf7 {[%clk 1:31:58]} 16. f5 {[%clk 1:13:00]} 16... h6 {[%clk 1:31:34]} 17.
fxe6+ {[%clk 1:10:28]} 17... Kg8 {[%clk 1:30:16]} 18. Nf6+ {[%clk 0:56:36]}
18... gxf6 {[%clk 1:30:25]} 19. Qg6+ {[%clk 0:57:01]} 19... Bg7 {[%clk 1:30:50]}
20. Rxf6 {[%clk 0:56:26]} 20... Qg1+ {[%clk 1:30:14]} 21. Rf1 {[%clk 0:55:26]}
21... Qd4 {[%clk 1:29:54]} 22. Qf7+ {[%clk 0:54:39]} 1/2-1/2

[Variant "Standard"]
[Site "Europe Echecs"]

[Event "Championnat du monde jeunes U10"]
[Date "2024.11.20"]
[White "Seo, Juwon"]
[Black "Anand, Tsogtbileg"]
[WhiteElo "1721"]
[BlackElo "1974"]
[Round "6.5"]
[Result "0-1"]
[TimeControl "5400+30"]

1. e4 {[%clk 1:30:54]} 1... e6 {[%clk 1:30:50]} 2. d4 {[%clk 1:31:19]} 2... d5
{[%clk 1:31:15]} 3. Nd2 {[%clk 1:31:41]} 3... Nf6 {[%clk 1:30:08]} 4. e5 {[%clk
1:30:35]} 4... Nfd7 {[%clk 1:30:24]} 5. Bd3 {[%clk 1:30:50]} 5... c5 {[%clk
1:30:25]} 6. c3 {[%clk 1:31:12]} 6... Nc6 {[%clk 1:30:26]} 7. Ne2 {[%clk
1:31:36]} 7... cxd4 {[%clk 1:29:17]} 8. cxd4 {[%clk 1:30:22]} 8... Qb6 {[%clk
1:29:07]} 9. Nf3 {[%clk 1:30:40]} 9... f6 {[%clk 1:28:39]} 10. exf6 {[%clk
1:23:34]} 10... Nxf6 {[%clk 1:28:58]} 11. O-O {[%clk 1:20:27]} 11... Bd6 {[%clk
1:27:56]} 12. Re1 {[%clk 1:01:47]} 12... O-O {[%clk 1:24:59]} 13. Nc3 {[%clk
0:54:14]} 13... a6 {[%clk 1:20:54]} 14. a3 {[%clk 0:52:24]} 14... Bd7 {[%clk
1:15:32]} 15. Bg5 {[%clk 0:48:38]} 15... Qc7 {[%clk 1:12:03]} 16. Rc1 {[%clk
0:37:13]} 16... Bf4 {[%clk 1:09:28]} 17. Bxf4 {[%clk 0:34:44]} 17... Qxf4 {[%clk
1:09:46]} 18. Ne2 {[%clk 0:33:31]} 18... Qd6 {[%clk 1:06:40]} 19. Ng3 {[%clk
0:32:01]} 19... Qf4 {[%clk 0:56:31]} 20. Ne2 {[%clk 0:25:58]} 20... Qh6 {[%clk
0:56:15]} 21. Ng3 {[%clk 0:22:29]} 21... Rac8 {[%clk 0:54:29]} 22. b4 {[%clk
0:18:35]} 22... Na7 {[%clk 0:46:26]} 23. Qd2 {[%clk 0:09:27]} 23... Qxd2 {[%clk
0:45:56]} 24. Nxd2 {[%clk 0:09:18]} 24... Bb5 {[%clk 0:45:52]} 25. Bb1 {[%clk
0:07:49]} 25... Nc6 {[%clk 0:44:20]} 26. Nf3 {[%clk 0:06:28]} 26... h6 {[%clk
0:41:02]} 27. h3 {[%clk 0:05:31]} 27... Kf7 {[%clk 0:39:46]} 28. Kh2 {[%clk
0:03:42]} 28... b6 {[%clk 0:38:11]} 29. Kg1 {[%clk 0:02:46]} 29... Nd7 {[%clk
0:37:47]} 30. Nh5 {[%clk 0:01:28]} 30... g5 {[%clk 0:37:08]} 31. Ng3 {[%clk
0:01:20]} 31... a5 {[%clk 0:36:54]} 32. bxa5 {[%clk 0:00:44]} 32... bxa5 {[%clk
0:36:31]} 33. Red1 {[%clk 0:00:33]} 33... a4 {[%clk 0:36:14]} 34. Bc2 {[%clk
0:00:38]} 34... Na5 {[%clk 0:36:17]} 35. Rb1 {[%clk 0:00:45]} 35... Nb3 {[%clk
0:31:27]} 36. Bxb3 {[%clk 0:00:40]} 36... axb3 {[%clk 0:31:51]} 37. Nd2 {[%clk
0:01:00]} 37... Ba4 {[%clk 0:31:47]} 38. Re1 {[%clk 0:00:33]} 38... Rb8 {[%clk
0:31:30]} 39. Re3 {[%clk 0:00:31]} 39... b2 {[%clk 0:31:48]} 40. Rbe1 {[%clk
0:00:49]} 40... Rfc8 {[%clk 0:31:34]} 41. Ne2 {[%clk 0:00:47]} 41... Nb6 {[%clk
0:25:42]} 42. Nc3 {[%clk 0:00:38]} 42... Nc4 {[%clk 0:25:46]} 43. Nxc4 {[%clk
0:00:40]} 43... Rxc4 {[%clk 0:26:05]} 44. Nb1 {[%clk 0:00:32]} 44... Rc1 {[%clk
0:26:03]} 45. Rxe6 {[%clk 0:00:38]} 45... Re8 {[%clk 0:26:07]} 46. Rxe8 {[%clk
0:00:46]} 46... Bxe8 {[%clk 0:26:33]} 47. Rf1 {[%clk 0:00:45]} 47... Bb5 {[%clk
0:26:56]} 48. Nd2 {[%clk 0:01:01]} 48... Rxf1+ {[%clk 0:27:16]} 49. Kh2 {[%clk
0:01:18]} 49... Rd1 {[%clk 0:27:40]} 50. Nf3 {[%clk 0:01:42]} 50... b1=Q {[%clk
0:28:05]} 51. Ne5+ {[%clk 0:02:11]} 51... Ke6 {[%clk 0:28:27]} 52. a4 {[%clk
0:02:37]} 52... Rh1+ {[%clk 0:28:47]} 53. Kg3 {[%clk 0:03:05]} 53... Qb3+ {[%clk
0:29:11]} 54. Kg4 {[%clk 0:03:30]} 54... Be2+ {[%clk 0:29:36]} 55. f3 {[%clk
0:03:56]} 55... Rg1 {[%clk 0:30:02]} 56. a5 {[%clk 0:04:21]} 56... Rxg2+ {[%clk
0:30:27]} 57. Kh5 {[%clk 0:04:48]} 57... Bxf3+ {[%clk 0:30:33]} 58. Nxf3 {[%clk
0:05:15]} 58... Qxf3+ {[%clk 0:30:56]} 59. Kxh6 {[%clk 0:05:42]} 59... Kf7
{[%clk 0:30:27]} 60. h4 {[%clk 0:06:09]} 60... Qf6+ {[%clk 0:30:41]} 61. Kh5
{[%clk 0:06:30]} 61... Qh8# 0-1

[Variant "Standard"]
[Site "Europe Echecs"]